bitfinex-derivatives/quotes_BTCF0:USTF0_20250924
["timestamp","ask_amount","ask_price","bid_price","bid_amount"]
[1758685065768,1.55103761,111830.0,111820.0,0.14914691]
[1758685065968,1.55104669,111830.0,111820.0,0.03677]
[1758685066168,1.5510398,111830.0,111820.0,0.03677]
[1758685066367,1.55103741,111830.0,111820.0,0.03677]
[1758685066568,1.55095632,111830.0,111820.0,0.03677]
[1758685068569,0.34859,111830.0,111820.0,0.81134432]
[1758685068874,1.11285992,111830.0,111820.0,0.63854131]
[1758685069070,1.06878992,111830.0,111820.0,0.5261644]
[1758685069267,1.06878992,111830.0,111820.0,0.63881197]
[1758685070776,1.05636992,111830.0,111820.0,0.63881197]
[1758685071177,0.96878992,111830.0,111820.0,0.63881197]
[1758685071575,1.05817632,111830.0,111820.0,0.63881197]
[1758685071776,1.05817632,111830.0,111820.0,0.14941757]
[1758685072078,0.96878992,111830.0,111820.0,0.23841197]
[1758685072378,0.96878992,111830.0,111820.0,0.23881197]
[1758685073774,1.41897632,111830.0,111820.0,0.12694757]
[1758685074083,1.41897632,111830.0,111820.0,0.12654757]
[1758685074271,1.41897632,111830.0,111820.0,0.12694757]
[1758685074676,1.2778664,111830.0,111820.0,0.21634197]
[1758685074877,1.47365992,111830.0,111820.0,0.23949197]
[1758685075982,1.56304632,111830.0,111820.0,0.23949197]
[1758685076178,1.56304632,111830.0,111820.0,0.15009757]
[1758685076382,1.56304632,111830.0,111820.0,0.03745]
[1758685076877,1.56304632,111830.0,111820.0,0.0143]
[1758685079082,1.56304632,111830.0,111820.0,0.0015]
[1758685079483,1.46304632,111830.0,111820.0,0.0015]
[1758685080285,1.86304632,111830.0,111820.0,0.0015]
[1758685080681,1.86304632,111830.0,111820.0,0.0011]
[1758685080882,1.86304632,111830.0,111820.0,0.0015]
[1758685081586,2.16924406,111830.0,111820.0,0.0011]
[1758685081786,2.16914875,111830.0,111820.0,0.0015]
[1758685082184,2.16914875,111830.0,111820.0,0.0011]
[1758685082387,1.88396883,111830.0,111820.0,0.0015]
[1758685082586,2.16914875,111830.0,111820.0,0.0015]
[1758685083489,1.15628883,111830.0,111820.0,0.0015]
[1758685083684,3.46736883,111830.0,111820.0,0.0015]
[1758685084190,3.46736883,111830.0,111820.0,0.11414757]
[1758685085784,3.46736883,111830.0,111820.0,0.0015]
[1758685087085,3.75254875,111830.0,111820.0,0.0011]
[1758685087389,4.15254875,111830.0,111820.0,0.0015]
[1758685088093,4.15254875,111830.0,111820.0,0.0011]
[1758685088286,4.15254875,111830.0,111820.0,0.0015]
[1758685092595,0.0893944,111820.0,111810.0,0.0001]
[1758685092787,0.0894024,111810.0,111800.0,0.00963413]
[1758685092983,1.84792224,111810.0,111800.0,0.00953413]
[1758685093186,1.84792224,111810.0,111800.0,0.00873413]
[1758685093387,1.84792224,111810.0,111800.0,0.00913413]
[1758685093895,1.84792224,111810.0,111800.0,0.02913413]
[1758685094391,1.86842856,111810.0,111800.0,0.14467845]
[1758685094589,1.86842856,111810.0,111800.0,0.14427845]
[1758685094892,1.86842856,111810.0,111800.0,0.14467845]
[1758685095092,1.86842856,111810.0,111800.0,0.12127845]
[1758685095287,1.86842856,111810.0,111800.0,0.01713413]
[1758685096793,1.86842856,111810.0,111800.0,0.05180413]
[1758685096989,0.45216965,111810.0,111800.0,0.05180413]
[1758685097390,0.37662015,111810.0,111800.0,0.54121453]
[1758685097688,1.16772576,111810.0,111800.0,0.54121453]
[1758685097888,1.75020949,111810.0,111800.0,0.45180413]
[1758685099187,1.18848,111810.0,111800.0,0.54121453]
[1758685099498,1.75883984,111810.0,111800.0,0.54121453]
[1758685099694,1.75883984,111810.0,111800.0,0.65367521]
[1758685099896,1.18848,111810.0,111800.0,0.65367521]
[1758685100096,1.75883984,111810.0,111800.0,0.65367521]
[1758685100296,1.75883984,111810.0,111800.0,0.56426481]
[1758685100698,1.44197493,111810.0,111800.0,0.56426481]
[1758685100898,1.08117493,111810.0,111800.0,0.56426481]
[1758685101294,0.3609,111820.0,111810.0,0.03391]
[1758685101492,0.61429493,111820.0,111810.0,0.03391]
[1758685101690,0.61439493,111830.0,111810.0,0.5233124]
[1758685101889,0.51429493,111830.0,111820.0,0.03391]
[1758685102100,1.34193493,111830.0,111820.0,0.1233044]
[1758685102500,0.51429493,111830.0,111820.0,0.1233044]
[1758685102701,1.34189493,111830.0,111820.0,0.1233044]
[1758685103295,1.08109493,111830.0,111820.0,0.1233044]
[1758685104098,1.08409493,111830.0,111820.0,0.23576508]
[1758685104495,0.8306,111830.0,111820.0,0.1233044]
[1758685104695,0.25649493,111830.0,111820.0,0.4841044]
[1758685104895,0.98385493,111830.0,111820.0,0.8841044]
[1758685105301,0.98685493,111830.0,111820.0,0.99656508]
[1758685105501,1.08409493,111830.0,111820.0,0.90717068]
[1758685105702,1.08409493,111830.0,111820.0,0.79471]
[1758685105900,0.25649493,111830.0,111820.0,0.79471]
[1758685106202,1.08409493,111830.0,111820.0,0.8841044]
[1758685106903,1.07113493,111830.0,111820.0,0.8841044]
[1758685107201,1.05543493,111830.0,111820.0,0.8841044]
[1758685107801,0.8306,111830.0,111820.0,0.8841044]
[1758685108000,1.06839493,111830.0,111820.0,0.8841044]
[1758685108300,0.25349493,111830.0,111820.0,0.8841044]
[1758685108506,1.08113493,111830.0,111820.0,0.8841044]
[1758685108702,1.06828493,111830.0,111820.0,1.04357592]
[1758685109498,0.24064493,111830.0,111820.0,0.8841044]
[1758685109693,1.06864512,111830.0,111820.0,0.8841044]
[1758685110004,1.06856493,111830.0,111820.0,0.8841044]
[1758685110206,0.24064493,111830.0,111820.0,0.8841044]
[1758685110499,1.06865642,111830.0,111820.0,0.8841044]
[1758685110699,1.06844493,111830.0,111820.0,0.8841044]
[1758685110901,1.06852427,111830.0,111820.0,0.99647967]
[1758685111101,1.06844493,111830.0,111820.0,0.99647967]
[1758685111300,0.24064493,111830.0,111820.0,0.99647967]
[1758685111702,0.33003133,111830.0,111820.0,0.63567967]
[1758685111997,0.8279064,111830.0,111820.0,0.63567967]
[1758685112203,1.17036133,111830.0,111820.0,0.63567967]
[1758685112595,0.34288133,111830.0,111820.0,0.63567967]
[1758685112795,1.17036133,111830.0,111820.0,0.63567967]
[1758685113103,0.9167864,111830.0,111820.0,0.5233044]
[1758685113405,1.17020133,111830.0,111820.0,0.5233044]
[1758685114204,1.53100133,111830.0,111820.0,0.43391]
[1758685114607,1.53100133,111830.0,111820.0,0.03391]
[1758685115005,1.53109664,111830.0,111820.0,0.03391]
[1758685115309,1.53100133,111830.0,111820.0,0.03431]
[1758685115512,0.82732,111830.0,111820.0,0.4845044]
[1758685115711,1.08081493,111830.0,111820.0,0.4845044]
[1758685115908,0.25349493,111830.0,111820.0,0.4845044]
[1758685116212,0.34297833,111840.0,111830.0,0.03391]
[1758685116403,1.09435833,111840.0,111830.0,0.03391]
[1758685117006,1.45515833,111840.0,111830.0,0.01264]
[1758685117206,1.45515833,111840.0,111830.0,0.03391]
[1758685117408,1.45715833,111840.0,111830.0,0.03391]
[1758685118211,1.10535833,111840.0,111830.0,0.03391]
[1758685118813,1.46615833,111840.0,111830.0,0.03391]
[1758685119911,1.10535833,111840.0,111830.0,0.03391]
[1758685120109,0.26459024,111840.0,111830.0,0.1232964]
[1758685120313,1.09221493,111840.0,111830.0,0.1232964]
[1758685120715,1.08918493,111840.0,111830.0,0.1232964]
[1758685121313,1.02658493,111840.0,111830.0,0.1232964]
[1758685121917,0.82772,111840.0,111830.0,0.1232964]
[1758685122117,1.08121493,111840.0,111830.0,0.1232964]
[1758685122312,1.16379059,111840.0,111830.0,0.1232964]
[1758685122516,1.16379625,111840.0,111830.0,0.03391]
[1758685122709,1.16372333,111840.0,111830.0,0.03391]
[1758685123107,1.16181333,111840.0,111830.0,0.03391]
[1758685124408,1.15492333,111840.0,111830.0,0.1232964]
[1758685124610,0.81205,111840.0,111830.0,0.1232964]
[1758685124810,1.06354493,111840.0,111830.0,0.1232964]
[1758685125012,1.04707493,111840.0,111830.0,0.1232964]
[1758685125519,1.13645333,111840.0,111830.0,0.1232964]
[1758685125912,0.8829584,111840.0,111830.0,0.1232964]
[1758685126107,1.13645333,111840.0,111830.0,0.1232964]
[1758685126318,1.13645333,111840.0,111830.0,0.03391]
[1758685127015,1.13651595,111840.0,111830.0,0.03391]
[1758685127220,1.13645333,111840.0,111830.0,0.03391]
[1758685128019,1.49725333,111840.0,111830.0,0.03391]
[1758685128408,1.49725333,111840.0,111830.0,0.03431]
[1758685128814,1.49734135,111840.0,111830.0,0.03431]
[1758685129008,1.49725333,111840.0,111830.0,0.03431]
[1758685130723,1.49725333,111840.0,111830.0,0.03391]
[1758685130921,1.49725333,111840.0,111830.0,0.03431]
[1758685133118,1.49725333,111840.0,111830.0,0.01304]
[1758685133323,1.89725333,111840.0,111830.0,0.0004]
[1758685133734,0.0893864,111830.0,111820.0,0.14727527]
[1758685133923,0.70376708,111830.0,111820.0,0.12581527]
[1758685134125,0.70368133,111830.0,111820.0,0.12501527]
[1758685134324,0.70368133,111830.0,111820.0,0.01304]
[1758685134718,0.70368133,111830.0,111820.0,0.01264]
[1758685134922,0.70368133,111830.0,111820.0,0.0351]
[1758685135321,0.70368133,111830.0,111820.0,0.0391]
[1758685136026,0.70368133,111830.0,111820.0,0.15171317]
[1758685136729,1.17012133,111830.0,111820.0,0.15171317]
[1758685137029,1.17012133,111830.0,111820.0,0.0391]
[1758685137825,1.53092133,111830.0,111820.0,0.01704]
[1758685138129,1.53092133,111830.0,111820.0,0.01664]
[1758685138331,1.53092133,111830.0,111820.0,0.0391]
[1758685139530,1.08073493,111830.0,111820.0,0.0391]
[1758685139829,1.08073493,111830.0,111820.0,0.1284944]
[1758685140029,1.08073493,111830.0,111820.0,0.0391]
[1758685140231,1.17012133,111830.0,111820.0,0.0391]
[1758685141232,1.17018686,111830.0,111820.0,0.0391]
[1758685141431,1.17012133,111830.0,111820.0,0.0391]
[1758685141626,0.9166264,111830.0,111820.0,0.0391]
[1758685141823,1.17012133,111830.0,111820.0,0.0391]
[1758685142030,1.53092133,111830.0,111820.0,0.0391]
[1758685144131,1.08073493,111830.0,111820.0,0.1284944]
[1758685144324,0.82724,111830.0,111820.0,0.1284944]
[1758685144529,1.08073493,111830.0,111820.0,0.1284944]
[1758685144732,1.08073493,111830.0,111820.0,0.24110757]
[1758685144931,1.17012133,111830.0,111820.0,0.24110757]
[1758685146328,1.17021664,111830.0,111820.0,0.24110757]
[1758685146634,0.82724,111830.0,111820.0,1.00190757]
[1758685147234,0.9166264,111830.0,111820.0,1.00190757]
[1758685147624,0.82724,111830.0,111820.0,1.00190757]
[1758685147829,0.72724,111830.0,111820.0,1.00190757]
[1758685148031,0.8166264,111830.0,111820.0,0.8892944]
[1758685148936,1.07012133,111830.0,111820.0,0.8892944]
[1758685149132,0.0893864,111830.0,111820.0,0.8892944]
[1758685149335,0.91665056,111830.0,111820.0,0.8892944]
[1758685150937,0.82726416,111830.0,111820.0,0.8892944]
[1758685151437,0.8272,111830.0,111820.0,1.00183435]
[1758685151633,0.73495416,111830.0,111820.0,1.00183435]
[1758685151833,0.72726416,111830.0,111820.0,1.25532928]
[1758685152242,1.07014549,111830.0,111820.0,1.00183519]
[1758685152842,0.81665056,111830.0,111820.0,1.00183519]
[1758685153043,1.07014549,111830.0,111820.0,0.8892944]
[1758685153343,0.72726416,111830.0,111820.0,0.8892944]
[1758685153941,0.0894838,111840.0,111830.0,0.1253364]
[1758685154238,1.17003873,111840.0,111830.0,0.23787733]
[1758685154437,1.15498873,111840.0,111830.0,0.23787733]
[1758685154639,1.07003873,111840.0,111830.0,0.23787733]
[1758685155240,0.8165438,111840.0,111830.0,0.63787733]
[1758685155446,0.8165438,111840.0,111830.0,1.3455897]
[1758685155648,1.88354,111850.0,111840.0,0.1253284]
[1758685155949,2.71056,111850.0,111840.0,0.73962333]
[1758685156346,2.71056,111850.0,111840.0,0.4861284]
[1758685156941,2.71056,111850.0,111840.0,0.8861284]
[1758685157147,2.71256,111850.0,111840.0,0.8861284]
[1758685160047,0.002,111850.0,111840.0,1.13962333]
[1758685160252,0.002,111850.0,111840.0,1.32712299]
[1758685160253,0.76224,111850.0,111840.0,1.32712299]
[1758685160654,0.74604,111850.0,111840.0,1.07362806]
[1758685160952,0.66224,111850.0,111840.0,1.35846281]
[1758685162051,0.66224,111850.0,111840.0,1.43758804]
[1758685162756,0.7516104,111850.0,111840.0,0.65466308]
[1758685162944,0.7516104,111850.0,111840.0,0.93949783]
[1758685163145,1.03644515,111850.0,111840.0,0.85008838]
[1758685163748,0.66224,111850.0,111840.0,1.25008838]
[1758685164955,0.66224,111850.0,111840.0,1.24408838]
[1758685165256,0.66224,111850.0,111840.0,1.4125599]
[1758685165555,0.66224,111850.0,111840.0,1.4035599]
[1758685165755,0.66224,111850.0,111840.0,1.4075599]
[1758685167657,0.66224,111850.0,111840.0,1.12272515]
[1758685167853,0.7516105,111850.0,111840.0,1.4075599]
[1758685168255,1.03644525,111850.0,111840.0,1.4075599]
[1758685168455,1.03644525,111850.0,111840.0,1.0075599]
[1758685168655,0.7516105,111850.0,111840.0,1.0075599]
[1758685169351,0.7516105,111850.0,111840.0,0.93443467]
[1758685170153,0.7516105,111850.0,111840.0,0.77496315]
[1758685172059,0.7516105,111850.0,111840.0,0.4901284]
[1758685172357,0.7516105,111850.0,111840.0,0.77496315]
[1758685173061,0.7516105,111850.0,111840.0,0.4901284]
[1758685173253,0.7516105,111850.0,111840.0,0.77496315]
[1758685176352,1.03644525,111850.0,111840.0,0.4901284]
[1758685176658,1.03644525,111850.0,111840.0,0.15220165]
[1758685177358,1.79724525,111850.0,111840.0,0.04035]
[1758685177660,1.79724525,111850.0,111840.0,0.0044]
[1758685177860,1.79724525,111850.0,111840.0,0.004]
[1758685178059,1.79724525,111850.0,111840.0,0.0044]
[1758685178654,1.79724525,111850.0,111840.0,0.004]
[1758685178864,1.79724525,111850.0,111840.0,0.0044]
[1758685179060,1.86924141,111850.0,111840.0,0.0044]
[1758685179250,1.86924141,111850.0,111840.0,0.004]
[1758685179455,1.46924141,111850.0,111840.0,0.0044]
[1758685179853,0.0893784,111840.0,111830.0,0.001]
[1758685180058,0.4501784,111840.0,111830.0,0.0008]
[1758685180263,0.4501784,111840.0,111820.0,0.14643165]
[1758685180264,0.0893864,111830.0,111820.0,0.14643165]
[1758685180461,1.20094115,111830.0,111820.0,0.14623165]
[1758685181759,1.20094115,111830.0,111820.0,0.23662605]
[1758685182159,1.96174115,111830.0,111820.0,0.11325165]
[1758685182358,1.95674115,111830.0,111820.0,0.001]
[1758685182967,1.95674115,111830.0,111820.0,0.0064]
[1758685183466,1.95674115,111830.0,111820.0,0.0054]
[1758685184563,1.95674115,111830.0,111820.0,0.005]
[1758685184763,0.73002115,111830.0,111820.0,0.04023]
[1758685184968,1.55678115,111830.0,111820.0,0.04063]
[1758685185161,1.55678115,111830.0,111820.0,0.01929]
[1758685185361,1.55678115,111830.0,111820.0,0.04063]
[1758685185963,1.55678115,111830.0,111820.0,0.01929]
[1758685187075,1.55678115,111830.0,111820.0,0.04063]
[1758685188568,1.55678115,111830.0,111820.0,0.01929]
[1758685188772,1.55678115,111830.0,111820.0,0.0054]
[1758685189071,1.95678115,111830.0,111820.0,0.005]
[1758685189372,1.95678115,111830.0,111820.0,0.04044]
[1758685192173,1.55678115,111830.0,111820.0,0.04044]
[1758685193667,1.2719464,111830.0,111820.0,0.04044]
[1758685193863,1.55678115,111830.0,111820.0,0.0189]
[1758685194064,1.55678115,111830.0,111820.0,0.0054]
[1758685195972,1.55678115,111830.0,111820.0,0.04044]
[1758685196976,1.55678115,111830.0,111820.0,0.1298344]
[1758685198079,1.2719464,111830.0,111820.0,0.1298344]
[1758685198274,1.55678115,111830.0,111820.0,0.1298344]
[1758685199074,1.19598115,111830.0,111820.0,0.1298344]
[1758685200277,0.4502812,111840.0,111830.0,0.0135]
[1758685200473,0.5428865,111850.0,111840.0,0.0135]
[1758685200674,1.65430125,111850.0,111840.0,0.03504]
[1758685201076,1.939136,111850.0,111840.0,0.0135]
[1758685201274,0.0893784,111840.0,111830.0,0.0137]
[1758685201473,0.6590479,111840.0,111830.0,0.03504]
[1758685201879,0.5696695,111840.0,111830.0,0.1244264]
[1758685202278,0.28483475,111840.0,111830.0,0.1244264]
[1758685202484,1.3695632,111850.0,111840.0,0.1244184]
[1758685202680,1.64215795,111850.0,111840.0,0.1244184]
[1758685202880,1.64215795,111850.0,111840.0,0.03504]
[1758685203178,1.62914795,111850.0,111840.0,0.03504]
[1758685203781,0.87352616,111850.0,111840.0,0.4852184]
[1758685203982,1.09451091,111850.0,111840.0,0.4852184]
[1758685204179,1.09451091,111850.0,111840.0,1.17005315]
[1758685204380,0.80967616,111850.0,111840.0,1.2823048]
[1758685204584,1.09451091,111850.0,111840.0,1.2823048]
[1758685204880,0.80967616,111850.0,111840.0,1.17005315]
[1758685205175,0.0001,111860.0,111850.0,0.1244104]
[1758685205380,0.8266,111860.0,111850.0,0.77004515]
[1758685205579,0.8266,111860.0,111850.0,1.17004515]
[1758685205974,1.11143475,111860.0,111850.0,1.17004515]
[1758685206173,0.8266,111860.0,111850.0,1.17004515]
[1758685206373,1.11143475,111860.0,111850.0,1.17004515]
[1758685206777,1.12843475,111860.0,111850.0,1.17004515]
[1758685206978,0.8436,111860.0,111850.0,1.17004515]
[1758685207174,0.8436,111860.0,111850.0,1.28230734]
[1758685207575,0.41998591,111890.0,111880.0,0.1028465]
[1758685207775,1.20070005,111890.0,111880.0,0.1243865]
[1758685207975,0.28483475,111890.0,111880.0,0.77002125]
[1758685208180,1.9725709,111900.0,111890.0,0.1243785]
[1758685208376,2.7990509,111900.0,111890.0,0.4851785]
[1758685208577,2.70972,111900.0,111890.0,0.4851785]
[1758685208973,2.79222205,111900.0,111890.0,0.4851785]
[1758685209379,3.0770568,111900.0,111890.0,0.77001325]
[1758685209683,3.1663873,111900.0,111890.0,0.4851785]
[1758685210184,3.1663873,111900.0,111890.0,0.39584]
[1758685210384,2.88155255,111900.0,111890.0,0.39584]
[1758685210585,3.45122205,111900.0,111890.0,0.03504]
[1758685210784,2.88155255,111900.0,111890.0,0.03504]
[1758685210979,3.45122205,111900.0,111890.0,0.03504]
[1758685212189,3.45122205,111900.0,111890.0,0.03544]
[1758685213885,3.1663873,111900.0,111890.0,0.03544]
[1758685214089,3.1650873,111900.0,111890.0,0.03544]
[1758685214486,3.0757568,111900.0,111890.0,0.1247785]
[1758685214690,3.0757568,111900.0,111890.0,0.4855785]
[1758685215089,3.1650873,111900.0,111890.0,0.1247785]
[1758685215286,3.1650873,111900.0,111890.0,0.03544]
[1758685215287,2.87972255,111900.0,111890.0,0.03544]
[1758685215587,3.1645573,111900.0,111890.0,0.03544]
[1758685216589,3.1645573,111900.0,111890.0,0.1247785]
[1758685217089,3.0749868,111900.0,111890.0,0.1247785]
[1758685217288,2.79015205,111900.0,111890.0,0.1247785]
[1758685217495,2.90710074,111900.0,111890.0,0.40961325]
[1758685217993,2.62226599,111900.0,111890.0,0.40961325]
[1758685218186,2.90710074,111900.0,111890.0,0.40961325]
[1758685218386,2.90710074,111900.0,111890.0,0.1247785]
[1758685218590,2.99643124,111900.0,111890.0,0.77041325]
[1758685218991,2.99643124,111900.0,111890.0,0.4855785]
[1758685220697,2.71159649,111900.0,111890.0,0.4855785]
[1758685220892,2.99643124,111900.0,111890.0,0.4855785]
[1758685221395,2.90710074,111900.0,111890.0,0.77041325]
[1758685222095,2.62226599,111900.0,111890.0,0.77041325]
[1758685222594,2.62226599,111900.0,111890.0,0.73860018]
[1758685224395,2.62226599,111900.0,111890.0,0.75560018]
[1758685225194,0.3608,111920.0,111910.0,0.1263325]
[1758685225195,0.4501157,111920.0,111910.0,0.1263325]
[1758685225391,0.92706851,111920.0,111910.0,0.1263325]
[1758685225692,1.18009019,111920.0,111910.0,0.1263325]
[1758685225997,0.83775281,111920.0,111910.0,0.4871325]
[1758685226294,1.18008899,111920.0,111910.0,0.4871325]
[1758685226484,1.18008899,111920.0,111910.0,0.39781]
[1758685226794,1.54088899,111920.0,111910.0,0.01378]
[1758685227292,1.54088899,111920.0,111910.0,0.01418]
[1758685227501,1.94088899,111920.0,111910.0,0.0004]
[1758685227893,1.94088899,111920.0,111910.0,0.0064]
[1758685228088,2.01243289,111920.0,111910.0,0.01978]
[1758685228288,2.01243289,111920.0,111910.0,0.02018]
[1758685228488,1.65163289,111920.0,111910.0,0.4935325]
[1758685230193,1.65163289,111920.0,111910.0,0.40421]
[1758685230390,2.01243289,111920.0,111910.0,0.02018]
[1758685231490,2.01243289,111920.0,111910.0,0.0064]
[1758685231695,2.01243289,111920.0,111910.0,0.006]
[1758685232291,2.01243289,111920.0,111910.0,0.0064]
[1758685232592,2.26545457,111920.0,111910.0,0.0064]
[1758685232790,2.26545457,111920.0,111910.0,0.006]
[1758685232994,2.26545457,111920.0,111910.0,0.0064]
[1758685233193,2.26545457,111920.0,111910.0,0.006]
[1758685233393,2.26545457,111920.0,111910.0,0.0064]
[1758685234192,2.26545457,111920.0,111910.0,0.006]
[1758685234493,2.26545457,111920.0,111910.0,0.0064]
[1758685235094,2.26545457,111920.0,111910.0,0.006]
[1758685235292,2.29139123,111920.0,111910.0,0.0064]
[1758685236098,2.29139123,111920.0,111910.0,0.006]
[1758685236289,2.29139123,111920.0,111910.0,0.0064]
[1758685238495,2.45729123,111920.0,111910.0,0.0064]
[1758685238691,0.0893225,111910.0,111900.0,0.0001]
[1758685238999,0.0893305,111900.0,111890.0,0.001]
[1758685239199,0.0893385,111890.0,111880.0,0.0137]
[1758685239399,0.70316018,111890.0,111880.0,0.0135]
[1758685240201,0.70316018,111890.0,111870.0,0.4881642]
[1758685240400,1.07862168,111880.0,111870.0,0.4881642]
[1758685240696,1.07862168,111880.0,111870.0,0.7371642]
[1758685240900,1.07862168,111880.0,111870.0,0.7375642]
[1758685241300,0.8256,111880.0,111870.0,0.7375642]
[1758685241501,1.07162168,111880.0,111870.0,0.7375642]
[1758685242000,1.16096798,111880.0,111870.0,0.7375642]
[1758685242200,1.16096798,111880.0,111870.0,0.7455642]
[1758685244598,0.8186,111880.0,111870.0,0.7455642]
[1758685245700,0.8236,111880.0,111870.0,0.7375642]
[1758685246798,0.005,111880.0,111870.0,0.7375642]
[1758685247003,0.8306,111880.0,111870.0,0.7375642]
[1758685247801,1.17296798,111880.0,111870.0,0.64821]
[1758685248006,1.17296798,111880.0,111870.0,0.03741]
[1758685248206,1.17296798,111880.0,111870.0,0.01378]
[1758685248408,1.17296798,111880.0,111870.0,0.01418]
[1758685248708,1.52876798,111880.0,111870.0,0.0004]
[1758685249005,1.52876798,111880.0,111870.0,0.0074]
[1758685249205,1.52876798,111880.0,111870.0,0.007]
[1758685249408,1.52876798,111880.0,111870.0,0.0004]
[1758685249606,1.52876798,111880.0,111870.0,0.0014]
[1758685250207,1.78178966,111880.0,111870.0,0.0014]
[1758685250396,0.0893543,111870.0,111860.0,0.01398]
[1758685250601,0.0893543,111870.0,111860.0,0.01458]
[1758685250806,0.34237598,111870.0,111860.0,0.01378]
[1758685251002,0.34237598,111870.0,111860.0,0.01418]
[1758685251206,0.34237598,111870.0,111860.0,0.03644]
[1758685251606,0.9199511,111880.0,111870.0,0.03496]
[1758685251906,1.17297278,111880.0,111870.0,0.03496]
[1758685252205,1.17297278,111880.0,111870.0,0.0127]
[1758685253006,1.16797278,111880.0,111870.0,0.0127]
[1758685253199,1.16797278,111880.0,111870.0,0.03496]
[1758685253398,0.61382168,111900.0,111880.0,0.0127]
[1758685253598,0.0893339,111900.0,111890.0,0.03496]
[1758685253809,0.9160939,111900.0,111890.0,0.03496]
[1758685254002,1.16911558,111900.0,111890.0,0.0127]
[1758685254203,0.0893383,111890.0,111880.0,0.39596]
[1758685254508,0.34235998,111890.0,111880.0,0.39576]
[1758685254704,0.34235998,111890.0,111880.0,0.0127]
[1758685255503,0.34235998,111890.0,111880.0,0.0131]
[1758685256001,0.0893383,111890.0,111880.0,0.03536]
[1758685256208,0.81521647,111900.0,111890.0,0.03496]
[1758685256507,1.06823815,111900.0,111890.0,0.39576]
[1758685256707,1.05223815,111900.0,111890.0,0.39576]
[1758685257297,1.06823815,111900.0,111890.0,0.39576]
[1758685257907,1.05223815,111900.0,111890.0,0.39676]
[1758685260409,0.79921647,111900.0,111890.0,0.39676]
[1758685260712,1.05223815,111900.0,111890.0,0.39676]
[1758685261313,1.05223815,111900.0,111890.0,0.4860983]
[1758685261812,0.97978168,111900.0,111890.0,0.4860983]
[1758685263509,1.06911198,111900.0,111890.0,0.39676]
[1758685265817,0.8160903,111900.0,111890.0,0.39676]
[1758685266014,1.06911198,111900.0,111890.0,0.39676]
[1758685266411,1.06911198,111900.0,111890.0,0.3745]
[1758685266710,1.42991198,111900.0,111890.0,0.001]
[1758685267315,1.42991198,111900.0,111890.0,0.0014]
[1758685268512,1.1768903,111900.0,111890.0,0.0014]
[1758685268713,1.06911198,111900.0,111890.0,0.03636]
[1758685268916,1.06911198,111900.0,111890.0,0.0014]
[1758685269217,1.42991198,111900.0,111890.0,0.0014]
[1758685269611,0.70315198,111900.0,111890.0,0.0014]
[1758685269816,1.17779198,111900.0,111890.0,0.0014]
[1758685270010,1.17779198,111900.0,111890.0,0.0141]
[1758685270408,1.17779198,111900.0,111890.0,0.0014]
[1758685270610,1.93859198,111900.0,111890.0,0.001]
[1758685270813,1.93859198,111900.0,111890.0,0.0014]
[1758685271516,1.3247703,111900.0,111890.0,0.39716]
[1758685271708,1.57779198,111900.0,111890.0,0.39716]
[1758685273719,1.93859198,111900.0,111890.0,0.0141]
[1758685274222,1.93859198,111900.0,111890.0,0.0014]
[1758685277820,1.6855703,111900.0,111890.0,0.0364]
[1758685278015,1.3247703,111900.0,111890.0,0.3972]
[1758685278221,1.48846168,111900.0,111890.0,0.4865383]
[1758685278423,1.17779198,111900.0,111890.0,0.4865383]
[1758685278923,1.08846168,111900.0,111890.0,0.4865383]
[1758685279117,1.17779198,111900.0,111890.0,0.59880341]
[1758685279615,1.17779198,111900.0,111890.0,0.50946511]
[1758685280322,1.53859198,111900.0,111890.0,0.12720511]
[1758685280722,1.17779198,111900.0,111890.0,0.12720511]
[1758685281022,1.17779198,111900.0,111890.0,0.50946511]
[1758685282424,1.17779198,111900.0,111890.0,0.48800511]
[1758685282824,0.9247703,111900.0,111890.0,0.14866511]
[1758685283123,1.17779198,111900.0,111890.0,0.50946511]
[1758685283323,1.17779198,111900.0,111890.0,0.3972]
[1758685283532,1.08846168,111900.0,111890.0,0.4865383]
[1758685284226,1.17779198,111900.0,111890.0,0.3972]
[1758685284528,1.12014218,111900.0,111890.0,0.4865383]
[1758685284823,1.20947248,111900.0,111890.0,0.4865383]
[1758685285125,1.20081248,111900.0,111890.0,0.3972]
[1758685285625,1.11148218,111900.0,111890.0,0.3972]
[1758685285821,1.11148218,111900.0,111890.0,0.4865383]
[1758685286625,1.19881248,111900.0,111890.0,0.3972]
[1758685287125,1.19222248,111900.0,111890.0,0.3972]
[1758685287425,1.47692466,111900.0,111890.0,0.3972]
[1758685287626,1.10289218,111900.0,111890.0,0.4865383]
[1758685288123,1.10084218,111900.0,111890.0,0.77124048]
[1758685288320,0.81614,111900.0,111890.0,1.17124048]
[1758685288520,0.73544,111900.0,111890.0,1.17124048]
[1758685288728,1.02014218,111900.0,111890.0,1.17124048]
[1758685288924,0.73544,111900.0,111890.0,0.8865383]
[1758685289127,0.73544,111900.0,111890.0,0.99909392]
[1758685289333,1.02014218,111900.0,111890.0,1.08846341]
[1758685289525,1.02014218,111900.0,111890.0,1.13537931]
[1758685289725,1.02014218,111900.0,111890.0,1.42008149]
[1758685290330,1.02014218,111900.0,111890.0,1.26060997]
[1758685291026,1.02014218,111900.0,111890.0,1.08842957]
[1758685291229,1.39417466,111900.0,111890.0,0.50972178]
[1758685291423,1.39417466,111900.0,111890.0,0.90972178]
[1758685291628,1.39417466,111900.0,111890.0,0.50932178]
[1758685291830,1.39417466,111900.0,111890.0,0.50972178]
[1758685292130,1.39417466,111900.0,111890.0,0.50932178]
[1758685292430,1.75497466,111900.0,111890.0,0.12746178]
[1758685292627,1.75497466,111900.0,111890.0,0.11352178]
[1758685292926,1.75497466,111900.0,111890.0,0.0014]
[1758685293129,1.75497466,111900.0,111890.0,0.12746419]
[1758685294631,1.75497466,111900.0,111890.0,0.01494]
[1758685295635,1.75497466,111900.0,111890.0,0.11352789]
[1758685295829,1.75497466,111900.0,111890.0,0.11392789]
[1758685297739,2.15497466,111900.0,111890.0,0.11392789]
[1758685298235,2.15497466,111900.0,111890.0,0.11352789]
[1758685298433,2.15497466,111900.0,111890.0,0.11392789]
[1758685299437,1.75497466,111900.0,111890.0,0.11392789]
[1758685302538,1.75497466,111900.0,111870.0,0.62232132]
[1758685302539,0.0937943,111870.0,111860.0,0.60614597]
[1758685302836,1.49619866,111870.0,111860.0,0.60494597]
[1758685303337,1.49619866,111870.0,111860.0,0.39644]
[1758685303542,1.49619866,111870.0,111860.0,0.39604]
[1758685303835,1.49619866,111870.0,111860.0,0.03664]
[1758685304031,1.49619866,111870.0,111860.0,0.03624]
[1758685304231,1.49619866,111870.0,111860.0,0.03218]